[Event "20th Dubai Open 2018"]
[Site "Dubai"]
[Date "2018.04.10"]
[Round "9"]
[White "Tania, Sachdev"]
[Black "Kavinda, Akila"]
[Result "1-0"]
[ECO "E83"]
[WhiteElo "2407"]
[BlackElo "1996"]
[Annotator "NA"]
[PlyCount "65"]
[EventDate "2018.??.??"]
[EventType "swiss"]
[EventCountry "UAE"]
[SourceTitle "playchess.com"]
[Source "ChessBase"]
[SourceQuality "1"]
[TimeControl "5400+30"]

1. d4 {[%emt 0:00:00]} g6 {[%emt 0:03:16]} 2. c4 {[%emt 0:00:44]} Nf6 {[%emt 0:00:12]} 3. f3 Bg7 {[%emt 0:00:17]} 4. e4 {[%emt 0:00:54]} d6 {[%emt 0:00:05]} 5. Nc3 {[%emt 0:00:20]} O-O {[%emt 0:00:05]} 6. Nge2 {[%emt 0:00:02]} Nc6 {[%emt 0:00:25]} 7. Be3 {[%emt 0:01:18]} a6 {[%emt 0:00:28]} 8. Qd2 {[%emt 0:01:56]} Bd7 {[%emt 0:00:12]} 9. Rb1 {[%emt 0:00:46]} Rb8 {[%emt 0:18:51]} 10. b4 {[%emt 0:01:00]} b5 {[%emt 0:00:26]} 11. cxb5 {[%emt 0:01:35]} axb5 {[%emt 0:00:03]} 12. d5 {[%emt 0:12:40]} Ne5 {[%emt 0:00:34]} 13. Nd4 {[%emt 0:00:02]} e6 {[%emt 0:20:26]} 14. Be2 {[%emt 0:06:09]} exd5 {[%emt 0:06:47]} 15. exd5 $16 {[%emt 0:00:08]} c6 {[%emt 0:19:07]} 16. dxc6 {[%emt 0:01:22]} Nxc6 {[%emt 0:00:04]} 17. Ndxb5 {[%emt 0:06:09]} Bf5 {[%emt 0:02:30]} 18. Rb2 {[%emt 0:08:11]} Re8 {[%emt 0:04:09]} 19. O-O {[%emt 0:08:18]} d5 {[%emt 0:19:54]} 20. Rd1 {[%emt 0:05:34]} Rb7 {[%emt 0:01:52]} 21. Nd4 {[%emt 0:07:48]} Rxe3 {[%emt 0:00:06]} 22. Qxe3 {[%emt 0:00:26]} Nxd4 {[%emt 0:00:49]} 23. Rxd4 {[%emt 0:00:37]} Re7 {[%emt 0:00:23]} 24. Qd2 {[%emt 0:12:02]} Qb6 {[%emt 0:00:43]} 25. Na4 {[%emt 0:00:16]} Qa7 {[%emt 0:00:23]} 26. Nc5 {[%emt 0:00:15]} Nd7 {[%emt 0:00:49]} 27. Rxd5 {[%emt 0:01:39]} Be6 {[%emt 0:00:03]} 28. Rd6 {[%emt 0:03:23]} Bxb2 {[%emt 0:00:58]} 29. Qxb2 {[%emt 0:00:11]} f6 {[%emt 0:00:30]} 30. Ra6 {[%emt 0:00:35]} Qc7 {[%emt 0:00:21]} 31. Rxe6 {[%emt 0:01:32]} Rxe6 {[%emt 0:00:37]} 32. Nxe6 {[%emt 0:00:02]} Qb6+ {[%emt 0:00:04]} 33. Qd4 {[%emt 0:00:19]} 1-0

[Event "20th Dubai Open 2018"]
[Site "Dubai"]
[Date "2018.04.10"]
[Round "9"]
[White "Rajdeep Sarkar"]
[Black "Bhambure, Shantanu"]
[Result "0-1"]
[ECO "A06"]
[WhiteElo "2393"]
[BlackElo "2155"]
[Annotator "NA"]
[PlyCount "142"]
[EventDate "2018.??.??"]
[EventType "swiss"]
[EventCountry "UAE"]
[SourceTitle "playchess.com"]
[Source "ChessBase"]
[SourceQuality "1"]
[TimeControl "5400+30"]

1. Nf3 {[%emt 0:00:00]} d5 {[%emt 0:00:15]} 2. g3 {[%emt 0:00:00]} Nf6 {[%emt 0:00:18]} 3. Bg2 {[%emt 0:00:00]} c5 {[%emt 0:00:13]} 4. b3 {[%emt 0:00:07]} Nc6 {[%emt 0:00:29]} 5. Bb2 {[%emt 0:00:04]} Bg4 {[%emt 0:02:39]} 6. d3 {[%emt 0:00:54]} e6 {[%emt 0:00:45]} 7. Nbd2 {[%emt 0:00:15]} Be7 {[%emt 0:01:16]} 8. h3 {[%emt 0:00:43]} Bh5 {[%emt 0:01:18]} 9. g4 {[%emt 0:00:08]} Bg6 {[%emt 0:00:56]} 10. Nh4 {[%emt 0:00:04]} Qc7 {[%emt 0:05:56]} 11. e3 {[%emt 0:00:40]} O-O {[%emt 0:06:40]} 12. O-O {[%emt 0:05:12]} Ne8 {[%emt 0:16:27]} 13. Nxg6 {[%emt 0:01:19]} hxg6 {[%emt 0:01:50]} 14. f4 {[%emt 0:01:23]} Bf6 {[%emt 0:02:13]} 15. c3 {[%emt 0:00:38]} g5 {[%emt 0:05:18]} 16. Qe2 {[%emt 0:07:34]} Rd8 {[%emt 0:03:26]} 17. fxg5 {[%emt 0:11:09]} Bxg5 {[%emt 0:00:08]} 18. Nf3 {[%emt 0:00:04]} Be7 {[%emt 0:01:37]} 19. e4 {[%emt 0:02:49]} dxe4 {[%emt 0:08:11]} 20. Qxe4 {[%emt 0:00:35]} Nf6 {[%emt 0:00:56]} 21. Qe2 {[%emt 0:03:13]} Nd5 {[%emt 0:02:30]} 22. Rfd1 {[%emt 0:02:39]} Bf6 {[%emt 0:05:26]} 23. Qd2 {[%emt 0:11:44]} Qg3 {[%emt 0:05:30]} 24. Qe1 {[%emt 0:19:08]} Qxe1+ {[%emt 0:02:45]} 25. Nxe1 {[%emt 0:00:09]} Bxc3 {[%emt 0:05:29]} 26. Bxc3 {[%emt 0:00:05]} Nxc3 {[%emt 0:00:03]} 27. Rd2 {[%emt 0:00:02]} Nd5 {[%emt 0:01:36]} 28. Rc1 {[%emt 0:00:26]} b6 {[%emt 0:00:28]} 29. Nc2 {[%emt 0:02:05]} Nde7 {[%emt 0:01:52]} 30. a3 {[%emt 0:00:55]} Rd6 {[%emt 0:04:09]} 31. b4 {[%emt 0:00:58]} c4 {[%emt 0:02:36]} 32. Ne3 {[%emt 0:00:45]} b5 {[%emt 0:04:19]} 33. Rdd1 {[%emt 0:01:29]} cxd3 {[%emt 0:02:08]} 34. Bf1 {[%emt 0:00:22]} Rfd8 {[%emt 0:00:56]} 35. Rc5 {[%emt 0:03:04]} a6 {[%emt 0:00:49]} 36. Kf2 {[%emt 0:00:22]} f6 {[%emt 0:01:10]} 37. Bg2 {[%emt 0:00:58]} Ne5 {[%emt 0:00:44]} 38. Be4 {[%emt 0:02:40]} Kf7 {[%emt 0:02:04]} 39. Ke1 {[%emt 0:00:55]} Rd4 {[%emt 0:00:42]} 40. Bb7 {[%emt 0:00:43]} Rh8 {[%emt 0:02:02]} 41. Bg2 {[%emt 0:02:39]} Rhd8 {[%emt 0:00:23]} 42. Bb7 {[%emt 0:00:06]} R8d6 {[%emt 0:00:42]} 43. Kd2 {[%emt 0:02:14]} Rf4 {[%emt 0:00:41]} 44. Kc3 {[%emt 0:07:09]} Rf2 {[%emt 0:00:38]} 45. g5 {[%emt 0:01:07]} Re2 {[%emt 0:00:20]} 46. gxf6 {[%emt 0:00:53]} gxf6 {[%emt 0:00:22]} 47. Ng4 {[%emt 0:00:44]} Nxg4 {[%emt 0:01:57]} 48. hxg4 {[%emt 0:00:07]} d2 {[%emt 0:00:24]} 49. Kc2 {[%emt 0:00:39]} e5 {[%emt 0:00:38]} 50. Bf3 {[%emt 0:00:40]} Rf2 {[%emt 0:00:38]} 51. Bb7 {[%emt 0:02:08]} Re2 {[%emt 0:00:30]} 52. Bf3 {[%emt 0:00:08]} Re3 {[%emt 0:00:17]} 53. Rc3 {[%emt 0:00:20]} Rxc3+ {[%emt 0:00:23]} 54. Kxc3 {[%emt 0:00:02]} Nd5+ 55. Kxd2 {[%emt 0:00:25]} Nxb4+ {[%emt 0:00:58]} 56. Ke2 {[%emt 0:01:00]} Rxd1 {[%emt 0:00:11]} 57. Kxd1 {[%emt 0:00:01]} Nd3 {[%emt 0:00:07]} 58. Kd2 {[%emt 0:00:17]} Nc5 {[%emt 0:00:04]} 59. Kc3 {[%emt 0:00:04]} Ke6 {[%emt 0:01:55]} 60. Kb4 {[%emt 0:00:04]} Kd6 {[%emt 0:00:17]} 61. Ka5 {[%emt 0:00:03]} e4 {[%emt 0:00:48]} 62. Be2 {[%emt 0:00:08]} Kd5 {[%emt 0:00:27]} 63. Kb6 {[%emt 0:00:20]} Kd4 {[%emt 0:00:29]} 64. Bf1 {[%emt 0:00:20]} e3 {[%emt 0:00:34]} 65. Be2 {[%emt 0:01:04]} Ne4 {[%emt 0:00:23]} 66. Kxa6 {[%emt 0:00:05]} Nc3 {[%emt 0:00:06]} 67. Bf1 {[%emt 0:00:28]} Kc5 {[%emt 0:00:10]} 68. Kb7 {[%emt 0:00:51]} e2 {[%emt 0:00:05]} 69. Bxe2 {[%emt 0:00:03]} Nxe2 {[%emt 0:00:03]} 70. Kc7 {[%emt 0:00:04]} Nd4 {[%emt 0:00:08]} 71. Kd7 {[%emt 0:00:03]} Kd5 {[%emt 0:00:03]} 0-1

[Event "20th Dubai Open 2018"]
[Site "Dubai"]
[Date "2018.04.10"]
[Round "9"]
[White "Omar, Noaman"]
[Black "Hakobyan, Eduard"]
[Result "0-1"]
[ECO "A61"]
[WhiteElo "2372"]
[BlackElo "2135"]
[Annotator "NA"]
[PlyCount "82"]
[EventDate "2018.??.??"]
[EventType "swiss"]
[EventCountry "UAE"]
[SourceTitle "playchess.com"]
[Source "ChessBase"]
[SourceQuality "1"]
[TimeControl "5400+30"]

1. d4 {[%emt 0:00:00]} Nf6 {[%emt 0:00:07]} 2. c4 {[%emt 0:00:06]} c5 {[%emt 0:00:13]} 3. d5 {[%emt 0:00:10]} e6 {[%emt 0:00:06]} 4. Nf3 {[%emt 0:00:34]} d6 {[%emt 0:00:26]} 5. Nc3 {[%emt 0:00:30]} exd5 {[%emt 0:00:07]} 6. cxd5 {[%emt 0:00:07]} g6 {[%emt 0:00:15]} 7. e4 {[%emt 0:00:10]} a6 {[%emt 0:00:25]} 8. a4 {[%emt 0:00:09]} Bg4 {[%emt 0:00:24]} 9. Be2 {[%emt 0:00:12]} Bxf3 {[%emt 0:00:15]} 10. Bxf3 {[%emt 0:00:03]} Bg7 {[%emt 0:00:11]} 11. O-O {[%emt 0:00:07]} O-O {[%emt 0:00:09]} 12. Bf4 {[%emt 0:01:10]} Qe7 {[%emt 0:00:34]} 13. Re1 {[%emt 0:03:22]} Nbd7 {[%emt 0:00:59]} 14. Qc2 {[%emt 0:00:22]} Rab8 {[%emt 0:02:29]} 15. a5 {[%emt 0:02:39]} b5 {[%emt 0:04:47]} 16. axb6 {[%emt 0:00:49]} Rxb6 {[%emt 0:00:23]} 17. Ra2 {[%emt 0:00:20]} Rfb8 {[%emt 0:07:27]} 18. Be2 {[%emt 0:01:30]} Ne5 {[%emt 0:12:30]} 19. h3 {[%emt 0:03:31]} Nh5 {[%emt 0:06:33]} 20. Bc1 {[%emt 0:12:19]} Qh4 {[%emt 0:28:51]} 21. Nd1 {[%emt 0:17:29]} Nf4 22. Bxf4 {[%emt 0:04:17]} Qxf4 {[%emt 0:02:31]} 23. Rxa6 {[%emt 0:03:38]} Nf3+ {[%emt 0:07:28]} 24. gxf3 {[%emt 0:04:11]} Be5 {[%emt 0:00:09]} 25. Kf1 {[%emt 0:06:14]} Qh2 {[%emt 0:06:10]} 26. Bc4 {[%emt 0:00:44]} Rxb2 {[%emt 0:00:38]} 27. Nxb2 {[%emt 0:00:19]} Rxb2 {[%emt 0:00:08]} 28. Qxb2 {[%emt 0:01:48]} Bxb2 {[%emt 0:00:02]} 29. Rd1 {[%emt 0:01:09]} Bd4 {[%emt 0:00:43]} 30. Rxd4 {[%emt 0:00:14]} cxd4 {[%emt 0:00:34]} 31. Ke2 {[%emt 0:00:16]} Kg7 {[%emt 0:00:43]} 32. Bd3 {[%emt 0:02:02]} h5 {[%emt 0:01:17]} 33. Ra4 {[%emt 0:00:20]} Qxh3 {[%emt 0:00:50]} 34. Rxd4 {[%emt 0:00:07]} Qg2 {[%emt 0:00:49]} 35. e5 {[%emt 0:03:29]} dxe5 {[%emt 0:00:10]} 36. Ra4 {[%emt 0:01:14]} Qg5 {[%emt 0:01:57]} 37. d6 {[%emt 0:00:22]} Qd8 {[%emt 0:01:18]} 38. Ra6 {[%emt 0:00:11]} Qd7 {[%emt 0:01:56]} 39. Rb6 {[%emt 0:02:07]} h4 {[%emt 0:01:05]} 40. Kf1 {[%emt 0:00:46]} h3 {[%emt 0:01:53]} 41. Kg1 {[%emt 0:00:10]} Qd8 {[%emt 0:00:06]} 0-1

[Event "20th Dubai Open 2018"]
[Site "Dubai"]
[Date "2018.04.10"]
[Round "9"]
[White "Phadke Sohan"]
[Black "Padmini, Rout"]
[Result "1/2-1/2"]
[ECO "A45"]
[WhiteElo "2150"]
[BlackElo "2360"]
[Annotator "NA"]
[PlyCount "61"]
[EventDate "2018.??.??"]
[EventType "swiss"]
[EventCountry "UAE"]
[SourceTitle "playchess.com"]
[Source "ChessBase"]
[SourceQuality "1"]
[TimeControl "5400+30"]

1. d4 {[%emt 0:00:07]} Nf6 {[%emt 0:00:19]} 2. Bf4 {[%emt 0:01:43]} e6 {[%emt 0:00:08]} 3. Nd2 {[%emt 0:03:19]} d5 {[%emt 0:00:06]} 4. e3 {[%emt 0:00:14]} c5 {[%emt 0:00:11]} 5. c3 {[%emt 0:00:19]} Nc6 {[%emt 0:00:04]} 6. Bd3 {[%emt 0:01:19]} b6 {[%emt 0:02:43]} 7. Ngf3 {[%emt 0:03:13]} Bb7 {[%emt 0:00:06]} 8. Ne5 {[%emt 0:05:32]} Bd6 9. Bb5 {[%emt 0:14:21]} Bxe5 {[%emt 0:02:52]} 10. dxe5 {[%emt 0:02:55]} Nd7 {[%emt 0:00:34]} 11. Qg4 {[%emt 0:01:06]} Kf8 {[%emt 0:03:37]} 12. Nf3 {[%emt 0:02:08]} h5 {[%emt 0:07:07]} 13. Qg3 {[%emt 0:14:39]} h4 {[%emt 0:00:09]} 14. Qg4 {[%emt 0:00:09]} Qc7 {[%emt 0:00:53]} 15. Nxh4 {[%emt 0:14:05]} Ncxe5 {[%emt 0:01:55]} 16. Qg3 {[%emt 0:06:23]} Bc6 {[%emt 0:02:19]} 17. Bxc6 {[%emt 0:01:26]} Qxc6 {[%emt 0:00:30]} 18. Bxe5 {[%emt 0:07:53]} Nxe5 {[%emt 0:00:29]} 19. Qxe5 {[%emt 0:00:03]} Rxh4 {[%emt 0:00:11]} 20. O-O {[%emt 0:01:01]} f6 {[%emt 0:01:24]} 21. Qg3 {[%emt 0:01:18]} Rh6 {[%emt 0:00:08]} 22. Rad1 {[%emt 0:00:32]} Rd8 {[%emt 0:05:38]} 23. Rd2 {[%emt 0:01:07]} Qd6 {[%emt 0:00:14]} 24. Qxd6+ {[%emt 0:00:06]} Rxd6 {[%emt 0:00:02]} 25. Rfd1 {[%emt 0:00:10]} Rc6 {[%emt 0:00:11]} 26. f4 {[%emt 0:00:16]} f5 {[%emt 0:00:10]} 27. h3 {[%emt 0:00:05]} Rc7 {[%emt 0:00:26]} 28. Kf2 {[%emt 0:00:06]} Rf6 {[%emt 0:00:15]} 29. Kf3 {[%emt 0:00:05]} Rff7 {[%emt 0:00:09]} 30. Kf2 {[%emt 0:00:07]} Rf6 31. Kg1 1/2-1/2